Cogmind - Beta 9.6 @@@ ROGUE MODE // 2020.04.21 @ 10:02:33 Player: CreepyD Result: Destroyed by G-34 Mercenary with Small Laser Performance ------------- Evolutions (0) 0 Regions Visited (1) 200 Robots Destroyed (9) 45 Value Destroyed (162) 162 Prototype IDs (0) 0 Alien Tech Used (0) 0 Bonus (0) 0 TOTAL SCORE: 407 Bonus ------- None Cogmind --------- Core Integrity 0/250 Matter 300/300 Energy 100/100 System Corruption 0% Temperature Cool (6) Movement Core (50) Location -10/Materials Parts ------- > --- POWER (1) -------- (None) > --- PROPULSION (2) --- (None) > --- UTILITY (2) ------ (None) > --- WEAPON (2) ------- (None) > --- INVENTORY (4) ---- Flight Unit Flight Unit Flight Unit Peak State ------------ > --- POWER ------------ Ion Engine > --- PROPULSION ------- Wheel Compact Wheel > --- UTILITY ---------- Small Storage Unit > --- WEAPON ----------- Medium Laser Light Assault Rifle > --- INVENTORY -------- (None) [Rating: 6] Favorites ----------- Power Ion Engine Engine Ion Engine Propulsion Compact Wheel Wheel Compact Wheel Utility Small Storage Unit Storage Small Storage Unit Weapon Light Assault Rifle Energy Gun Medium Laser Ballistic Gun Light Assault Rifle Build | -11 -10 ------- Run | Scr Mat Slots Evolved . | . . Power . | . . Propulsion . | . . Utility . | . . Weapon . | . . Parts Attached 8 | 6 2 Power 1 | 1 . Engine 1 | 1 . Core . | . . Reactor . | . . Propulsion 2 | 2 . Treads . | . . Leg . | . . Wheel 2 | 2 . Hover . | . . Flight . | . . Utility 1 | 1 . Device . | . . Storage 1 | 1 . Processor . | . . Hackware . | . . Protection . | . . Artifact . | . . Weapon 4 | 2 2 Energy Gun 1 | 1 . Energy Cannon . | . . Ballistic Gun 3 | 1 2 Ballistic Cannon . | . . Launcher . | . . Special Weapon . | . . Impact Weapon . | . . Slashing Weapon . | . . Piercing Weapon . | . . Special Melee Weapon . | . . Unidentified Prototypes . | . . Parts Lost 6 | . 6 Power . | . . Propulsion 2 | . 2 Utility . | . . Weapon 4 | . 4 Highest Loss Streak 6 | . 6 Average Slot Usage (%) 74 | . 74 Engine 14 | . 14 Wheel 21 | . 21 Storage 14 | . 14 Energy Gun 7 | . 7 Ballistic Gun 16 | . 16 Naked Turns 3 | . 3 Heaviest Build 12 | 12 12 Greatest Support 26 | 26 26 Greatest Overweight (x) 3 | 2 3 Average Overweight (x) . | . . Largest Inventory Capacity 6 | 6 6 Average Capacity 5 | 4 5 Most Carried 3 | 3 3 Average Carried . | . . Final Capacity 6 | 6 4 Final Carried 3 | . 3 Class Distribution -------------------- 100% | Mutant Dominant Class ---------------- Mutant | -10/Materials Resources | -11 -10 ----------- Run | Scr Mat Matter Collected 291 | 164 127 Remotely . | . . Salvage Created 219 | . 219 Parts 17 | . 17 Haulers Intercepted . | . . Recyclers Shooed . | . . Parts Field Recycled . | . . Retrieved Matter . | . . Parts Self-Destructed . | . . Prevented . | . . Kills | -11 -10 ------- Run | Scr Mat Combat Hostiles Destroyed 9 | . 9 Guns 9 | . 9 Classes Destroyed 2 | . 2 Swarmer 6 | . 6 Grunt 3 | . 3 Best Kill Streak 7 | . 7 Combat Bots Only 7 | . 7 Max Kills in Single Turn 2 | . 2 Gunslinging 1 | . 1 Exploded . | . . Melee . | . . Uniques/NPCs Destroyed . | . . Combat | -11 -10 -------- Run | Scr Mat Damage Taken 758 | 1 757 Core 261 | . 261 Absorbed by Shields . | . . Core Remaining (%) 100 | 100 . Volleys Fired 24 | . 24 Largest 2 | . 2 Hottest 70 | . 70 Shots Fired 43 | . 43 Gun 43 | . 43 Cannon . | . . Launcher . | . . Special . | . . Kinetic 40 | . 40 Thermal 3 | . 3 Explosive . | . . Electromagnetic . | . . Robot Hit Streak 12 | . 12 Robot Miss Streak 2 | . 2 Penetration Max . | . . Secondary Targets 3 | . 3 Max Gunslinging Chain 1 | . 1 Shots Hit Robots 35 | . 35 Core Hits 15 | . 15 Critical Hits . | . . Critical Kills . | . . Critical Parts Destroyed . | . . Melee Attacks . | . . Impact . | . . Slashing . | . . Piercing . | . . Sneak Attacks . | . . Combat Hostiles . | . . Follow-up Attacks . | . . Damage Inflicted 307 | 2 305 Guns 301 | . 301 Cannons . | . . Explosions . | . . Melee . | . . Ramming 6 | 2 4 Kinetic 277 | . 277 Thermal 24 | . 24 Explosive . | . . Electromagnetic . | . . Impact . | . . Slashing . | . . Piercing . | . . Highest Corruption . | . . Average Corruption . | . . Corruption Purged . | . . Overload Shots . | . . Overflow Damage . | . . Projectiles . | . . Explosions . | . . Melee . | . . Knockbacks 1 | . 1 Impact 1 | . 1 Kinetic . | . . Secondary . | . . Self-Inflicted Damage 2 | 1 1 Shots . | . . Rammed 3 | 1 2 Targets Rammed 3 | 1 2 Kicked . | . . Crushed . | . . Highest Temperature 74 | . 74 Average Temperature 18 | . 18 Received Heat Transfer 270 | . 270 Siege Activations . | . . Robots Corrupted . | . . Combat Hostiles . | . . Parts Fried . | . . Impact Corruptions . | . . Robots Melted . | . . Combat Hostiles . | . . Parts Melted . | . . Heat Transferred 74 | . 74 Parts Sabotaged . | . . Parts Stolen . | . . Parts Stripped . | . . Power Chain Reactions . | . . Missiles Intercepted . | . . Alert | -11 -10 ------- Run | Scr Mat Peak Influence 178 | . 178 Average Influence 40 | . 50 Maximum Alert Level . | . . Low Security (%) 100 | 100 100 Level 1 . | . . Level 2 . | . . Level 3 . | . . Level 4 . | . . Level 5 . | . . High Security . | . . Max Security . | . . Squads Dispatched 4 | . 4 Investigation 2 | . 2 Extermination . | . . Reinforcement 2 | . 2 Assault . | . . Garrison . | . . Intercept . | . . Construction Impeded . | . . Haulers Reinforced . | . . Stealth | -11 -10 --------- Run | Scr Mat Distress Signals . | . . Communications Jammed . | . . Distress Signals . | . . Times Spotted 26 | . 26 Peak Tracking Total 11 | . 11 Tactical Retreats 3 | . 3 Traps | -11 -10 ------- Run | Scr Mat Traps Triggered 2 | . 2 Indirectly . | . . Trap Hack Attempts . | . . Triggered . | . . Disarmed . | . . Reprogrammed . | . . Reused . | . . Traps Extracted . | . . Installed . | . . Triggered . | . . Machines | -11 -10 ---------- Run | Scr Mat Machines Disabled . | . . Max in Single Turn . | . . Machines Sabotaged . | . . Garrisons Compromised . | . . Overloaded Fab Kills . | . . Fab Network Shutdowns . | . . Hacking | -11 -10 --------- Run | Scr Mat Machines Accessed 2 | . 2 Terminals 2 | . 2 Fabricators . | . . Repair Stations . | . . Recycling Units . | . . Scanalyzers . | . . Garrison Access . | . . Total Hacks 4 | . 4 Successful 1 | . 1 Failed 3 | . 3 Catastrophic . | . . Database Lockouts . | . . Manual . | . . Terminals 4 | . 4 Fabricators . | . . Repair Stations . | . . Recycling Units . | . . Scanalyzers . | . . Garrison Access . | . . Terminal Hacks 1 | . 1 Level Access Points 1 | . 1 Fabricator Hacks . | . . Repair Station Hacks . | . . Recycling Unit Hacks . | . . Scanalyzer . | . . Garrison Access Hacks . | . . Unauthorized Hacks . | . . Terminals . | . . Fabricators . | . . Repair Stations . | . . Recycling Units . | . . Scanalyzers . | . . Garrison Access . | . . Data Cores Recovered . | . . Used . | . . Hacking Detections 2 | . 2 Full Trace Events . | . . Feedback Events . | . . Feedback Blocked . | . . Robot Schematics Acquired . | . . Robots Built . | . . Matter . | . . Time . | . . Total Robot Build Rating . | . . Part Schematics Acquired . | . . Parts Built . | . . Matter . | . . Time . | . . Total Part Build Rating . | . . Parts Repaired . | . . Time . | . . Parts Recycled . | . . Recycled Matter . | . . Retrieved Matter . | . . Retrieved Components . | . . Parts Scanalyzed . | . . Part Schematics Acquired . | . . Parts Damaged . | . . Bothacking | -11 -10 ------------ Run | Scr Mat Used RIF Installer . | . . Robots Hacked . | . . Non-combat . | . . Combat . | . . Robot Hacks Applied . | . . Relay Couplers Released . | . . Robots Rewired . | . . Allies Hacked . | . . Hacks Repelled . | . . Allies | -11 -10 -------- Run | Scr Mat Total Allies . | . . Largest Group . | . . Highest-Rated Group . | . . Highest-Rated Ally . | . . Total Orders . | . . Ally Attacks . | . . Total Damage . | . . Kills . | . . Allies Corrupted . | . . Allies Melted . | . . Intel | -11 -10 ------- Run | Scr Mat Robot Analysis Total . | . . Derelict Logs Recovered . | . . Drone Launches . | . . Drone Recoveries . | . . Exploration | -11 -10 ------------- Run | Scr Mat Turns Passed 257 | 51 206 Spaces Moved 184 | 47 137 Core 34 | 20 14 Treads . | . . Legs . | . . Wheels 150 | 27 123 Hover . | . . Flight . | . . Fastest Speed 50 | 50 50 Average Speed 92 | 79 97 Slowest Speed 200 | 150 200 Overloaded Moves . | . . Propulsion Burnouts . | . . Robots Hopped . | . . Cave-ins Triggered . | . . Exploration Rate (%) 17 | 3 31 Regions Visited 1 Branch Regions . Pre-discovered Areas . | . . Known Exits Taken . | . . Unknown Exits Taken 1 | 1 . Scrap Searched . | . . Spaces Dug . | . . Terrain Destroyed . | . . Melee . | . . Projectile . | . . AOE . | . . Actions | -11 -10 --------- Run | Scr Mat Total 236 | 60 176 Wait 5 | 1 4 Move 183 | 46 137 Hop . | . . Pick Up 11 | 6 5 Fast Attach . | . . Attach 8 | 6 2 Detach . | . . Swap . | . . Drop 2 | . 2 Fire 24 | . 24 Melee . | . . Ram 3 | 1 2 Kick . | . . Crush . | . . Escape Stasis . | . . Rewire . | . . Trap . | . . Miscellaneous . | . . Route ------- -11/Scrapyard -10/Materials (discovered 3 exits: *Mat x3) History --------- Turn | Location | Event 5 | -11/Scrapyard | Discovered new exit (range 16) 52 | -11/Scrapyard | Entered Materials 75 | -10/Materials | Identified exit to Materials 226 | -10/Materials | Core integrity fell below 50% 251 | -10/Materials | Destroyed 7 combat bots 256 | -10/Materials | Core integrity fell below 20% 258 | -10/Materials | Destroyed by G-34 Mercenary with Small Laser Last Messages --------------- 00212_ G-34 Mercenary destroyed. 00214_ Com. Wheel destroyed. 00227_ S-10 Pest destroyed. 00230_ Switching to secondary target: S-10 Pest. 00230_ S-10 Pest destroyed. 00231_ Acquired 16 matter. 00232_ Acquired 12 matter. 00233_ Lgt. Assault Rifle destroyed. 00234_ Acquired 19 matter. 00238_ Acquired Flight Unit. 00245_ R-06 Scavenger collects Lgt. Ion Engine. 00245_ R-06 Scavenger collects Sml. Laser. 00246_ Acquired Flight Unit. 00249_ Lgt. Assault Rifle destroyed. 00254_ Dropped Ion Engine. 00255_ Dropped Sml. Storage Unit. 00256_ R-06 Scavenger collects Aluminum Leg. 00257_ Slammed into G-34 Mercenary. 00257_ G-34 Mercenary knocked back. 00258_ Slammed into G-34 Mercenary. Map ----- +----------------------------------------------------+ | ?????????????????????????????????????????????????? | | ?????????????????????????????????????????????????? | | ?????????????????????????????????????????????????? | | ?????????????????????????????????????????????????? | | ?????????????????????????????????????????????????? | | ?????????????????????????????????????????????????? | | ?????????????????????????????????????????????????? | | ?????????????????????????????????????????????????? | | ?????????????????????????????????????????????????? | | ?????????????????????????????????????????????????? | | ?????????????????????????????????????????????????? | | ?????????????????????????????????????????????????? | | ?????????????????????????????????????????????????? | | ?????????????????????????????????????????????????? | | ?????????????????????????????????????????????????? | | ?????????????????????????????????????????????????? | | ?????????????????????????????????????????????????? | | ?????????????????????????????????????????????????? | | ???????????????????????#########?????????????????? | | ???????????????????????# !! #?????????????????? | | ???????????????????????# !! #?????????????????? | | ?????????????###???????# ! #?????????????????? | | ?????????????# T ?????# #?????#####???????? | | ?????????????# ???# !* #???? ## #????? | | ?????????????# [#######+###### ???? | | ?????????????# %+ r@g%% T ????? | | ?????????????# ####### %g # ???? | | ?????????????# """ ????????# #?????????????? | | ?????????????? """??????????# #?????????????? | | ???????????????"""??????????#### #?????????????? | | ??????????????? ??????????????# #?????????????? | | ###############+################ ##????????????? | | ########## ? | | ! ? | | [ | | ######### ? | | #???????# """"" ?? | | #???????##### """""??????? | | ##########????????????% """ ??????? | | #?????###########????? ?????? | | ########/##?????# #????? ????? | | #??# ####### """ #?????? ???? | | #??# """ # # """ "" #?????? ]!??? | | #??# """ # # """ "" #?????? ]! ?? | | #??# """ + + T" #?????? !!??? | | #??# # # "" #??????? ? ??? | | #??# """ # # "" #????????? ???? | | #??# """ ## ## #?????????? "???? | | #??# """ ## ########T###?????????? ?????? | | ???# ## #???????##????????????? ???????? | +----------------------------------------------------+ Best States ------------- Heat Dissipation 25 Energy Generation 10 Energy Capacity 250 Matter Stores 300 Matter Capacity 300 Sight Range 16 Terrain Scan Density 10 Evasion (%) 50 Item Schematics ----------------- None Robot Schematics ------------------ None Fabricated ------------ Nothing Alien Tech Used ----------------- None Achievements -------------- None Challenges ------------ None Game ------ Seed FlightAerolevBoomstick Manual? 0 Play Time 00:06:44 Cumulative 30.7 hours Start 2020.04.21 @ 09:14:04 End 2020.04.21 @ 10:02:33 Sessions 1 Manual Loads 0 Difficulty Rogue Special Mode None Game No. 33 Rogue 32 Adventurer 1 Explorer 0 Win Type - Total 0 Types 0/0/0/0/0/0/0 Lore% 20 Gallery% 38 Achievement% 27 Wizard Run 0 Options --------- ASCII 0 Keyboard 0 Movement Mouse Keybinds 0 Fullscreen 0 Font 16/Smallcaps Map View 76x50 Tactical HUD 1 Map Filters NONE Filters NONE Steam X RUN: c6fbb910-4c22-4866-99d0-4d8f460e7eb8